bitfinex/quotes_BTCUSD_20240906
["timestamp","ask_amount","ask_price","bid_price","bid_amount"]
[1725645137351,0.185281,53972.0,53968.0,0.185293]
[1725645137588,0.185281,53972.0,53966.0,0.370603]
[1725645137589,0.51538147,53973.0,53969.0,0.185291]
[1725645137860,0.33010147,53973.0,53956.0,0.002]
[1725645138080,0.370507,53980.0,53976.0,0.185265]
[1725645138081,0.185255,53980.0,53976.0,0.185265]
[1725645138320,0.370489,53983.0,53968.0,0.37428994]
[1725645138565,0.185253,53981.0,53977.0,0.185261]
[1725645138807,0.185257,53979.0,53972.0,0.370561]
[1725645139039,0.185257,53979.0,53975.0,0.18527]
[1725645139275,0.52085335,53990.0,53976.0,0.1946]
[1725645139524,0.1959,54003.0,53979.0,0.01]
[1725645139763,0.37044,53990.0,53977.0,0.3975]
[1725645140063,0.185235,53986.0,53982.0,0.185245]
[1725645140298,0.185235,53986.0,53977.0,0.58225239]
[1725645140299,0.185218,53991.0,53983.0,0.370482]
[1725645140537,0.32965335,53995.0,53977.0,0.59225239]
[1725645140538,0.18524,53984.0,53980.0,0.185252]
[1725645140787,0.32965335,53995.0,53977.0,0.58225239]
[1725645140788,0.185229,53988.0,53977.0,0.58225239]
[1725645141029,0.18523,53987.0,53983.0,0.185242]
[1725645141276,0.370452,53989.0,53984.0,0.185239]
[1725645141765,0.370452,53989.0,53982.0,0.185245]
[1725645141766,0.185233,53986.0,53982.0,0.185245]
[1725645142003,0.185233,53986.0,53978.0,0.37052]
[1725645142004,0.185244,53983.0,53979.0,0.185256]
[1725645142512,0.185244,53983.0,53980.0,0.185253]
[1725645142756,0.185244,53983.0,53978.0,0.37052]
[1725645142999,0.370485,53984.0,53977.0,0.3975]
[1725645143238,0.185248,53982.0,53978.0,0.185259]
[1725645143485,0.185242,53984.0,53977.0,0.768021]
[1725645143718,0.1,54002.0,53977.0,0.768021]
[1725645143719,0.32965335,53985.0,53977.0,0.3975]
[1725645143959,0.3819,53989.0,53977.0,0.3975]
[1725645143960,0.185246,53983.0,53979.0,0.185253]
[1725645144190,0.185246,53983.0,53979.0,0.185256]
[1725645144420,0.1834,53993.0,53977.0,0.3975]
[1725645144640,0.185252,53981.0,53977.0,0.582763]
[1725645145120,0.370493,53982.0,53977.0,0.3975]
[1725645145590,0.370465,53987.0,53977.0,0.3975]
[1725645145591,0.370482,53984.0,53977.0,0.3975]
[1725645145827,0.370465,53987.0,53977.0,0.3975]
[1725645146073,0.20062996,53990.0,53986.0,0.185232]
[1725645146307,0.20062996,53990.0,53977.0,0.58225239]
[1725645146308,0.01540996,53990.0,53978.0,1.2753]
[1725645146552,0.01540996,53990.0,53983.0,0.370485]
[1725645146553,0.20063096,53990.0,53983.0,0.370485]
[1725645146822,0.75443,53994.0,53983.0,0.370485]
[1725645146823,0.000814,53994.0,53984.0,0.00370425]
[1725645147072,0.000814,53994.0,53992.0,0.185211]
[1725645147289,0.000814,53994.0,53984.0,0.81385664]
[1725645147290,0.185216,53991.0,53987.0,0.185227]
[1725645147526,0.185214,53992.0,53987.0,0.370459]
[1725645147802,0.370419,53993.0,53985.0,0.370469]
[1725645148035,0.000814,53994.0,53988.0,0.185225]
[1725645148271,0.185222,53990.0,53986.0,0.185231]
[1725645148523,0.32965335,53992.0,53984.0,0.412]
[1725645148773,0.185235,53986.0,53979.0,0.556012]
[1725645149022,0.32965335,53992.0,53979.0,0.3991]
[1725645149023,0.37046,53987.0,53979.0,0.3991]
[1725645149259,0.37046,53987.0,53982.0,0.185246]
[1725645149260,0.185236,53986.0,53982.0,0.185246]
[1725645149495,0.370463,53987.0,53979.0,0.3991]
[1725645149496,0.02900231,53985.0,53979.0,0.3991]
[1725645149733,0.185241,53984.0,53979.0,0.3991]
[1725645149969,0.02900231,53985.0,53979.0,0.3991]
[1725645149970,0.185243,53983.0,53979.0,0.3991]
[1725645150225,0.02900231,53985.0,53980.0,1.2753]
[1725645150461,0.185241,53984.0,53980.0,1.460552]
[1725645150689,0.185243,53984.0,53980.0,1.460552]
[1725645151172,0.70008935,53991.0,53980.0,1.2753]
[1725645151413,0.370442,53990.0,53984.0,0.185238]
[1725645151668,0.1857,53997.0,53985.0,0.00370425]
[1725645151912,0.1,53996.0,53986.0,1.2753]
[1725645152168,0.3956,53998.0,53988.0,0.370451]
[1725645152169,0.370384,53998.0,53988.0,0.370451]
[1725645152401,0.370384,53998.0,53986.0,1.2753]
[1725645152402,0.185199,53996.0,53992.0,0.18521]
[1725645152639,0.000815,53999.0,53993.0,0.961127]
[1725645153131,0.000815,53999.0,53993.0,2.64382846]
[1725645153378,0.000815,53999.0,53993.0,3.01424646]
[1725645154061,0.000815,53999.0,53993.0,2.64382846]
[1725645154291,0.000815,53999.0,53993.0,3.01424646]
[1725645154738,0.000815,53999.0,53993.0,3.19899885]
[1725645154974,0.000815,53999.0,53993.0,3.23399885]
[1725645155197,0.000815,53999.0,53993.0,3.35199885]
[1725645156028,0.000815,53999.0,53993.0,2.74382846]
[1725645156241,0.34704919,54010.0,54003.0,0.185173]
[1725645156455,0.371084,54015.0,54006.0,0.370326]
[1725645156676,0.185145,54012.0,54006.0,0.370327]
[1725645156911,0.185137,54014.0,54008.0,0.370315]
[1725645157137,0.185141,54013.0,54009.0,0.185153]
[1725645157352,0.000815,54015.0,54007.0,1.2753]
[1725645157353,0.000815,54015.0,54007.0,1.645617]
[1725645157571,0.000815,54015.0,54008.0,0.00370258]
[1725645157572,0.18515,54011.0,54008.0,0.00370258]
[1725645157784,0.185146,54012.0,54008.0,0.185157]
[1725645158001,0.185148,54011.0,54007.0,1.46046]
[1725645158690,0.185147,54011.0,54007.0,1.460459]
[1725645158924,0.370286,54013.0,54007.0,1.460459]
[1725645158925,0.370286,54013.0,54007.0,1.2753]
[1725645159151,0.02899174,54014.0,54007.0,1.2753]
[1725645159152,1.15043036,54008.0,54007.0,1.2753]
[1725645159590,1.52074536,54008.0,54007.0,1.2753]
[1725645160042,1.54973882,54008.0,54007.0,1.2753]
[1725645160287,1.54973882,54008.0,53994.0,1.2753]
[1725645160288,0.92601,53995.0,53994.0,1.2753]
[1725645160542,0.22464336,53997.0,53988.0,1.2753]
[1725645161022,0.22464336,53997.0,53988.0,1.460525]
[1725645161023,0.185212,53992.0,53988.0,1.460525]
[1725645161233,0.370399,53996.0,53989.0,0.370445]
[1725645161443,0.22464336,53997.0,53988.0,1.2753]
[1725645161444,0.185196,53997.0,53993.0,0.185207]
[1725645161671,0.185199,53996.0,53993.0,0.185207]
[1725645161943,0.185199,53996.0,53988.0,1.2753]
[1725645161944,0.185222,53989.0,53988.0,1.2753]
[1725645162175,0.555667,53989.0,53988.0,1.2753]
[1725645162659,0.370487,53983.0,53976.0,0.3833]
[1725645162884,0.185251,53981.0,53977.0,0.55430836]
[1725645163167,0.185245,53983.0,53976.0,0.753828]
[1725645163407,0.370472,53986.0,53979.0,0.370513]
[1725645163614,0.370472,53986.0,53976.0,0.3833]
[1725645163615,0.41914336,53993.0,53977.0,0.18475239]
[1725645163838,0.22464336,53991.0,53979.0,0.370508]
[1725645164083,0.3876,53998.0,53978.0,0.370519]
[1725645164084,0.22464336,53987.0,53978.0,0.370519]
[1725645164311,0.40320133,53998.0,53976.0,0.3833]
[1725645164312,0.18526,53978.0,53976.0,0.3833]
[1725645164542,0.59516436,53979.0,53976.0,0.3833]
[1725645164543,0.22464336,53979.0,53976.0,0.3833]
[1725645164780,0.59513136,53983.0,53978.0,0.18526]
[1725645164968,0.59513136,53983.0,53977.0,0.185263]
[1725645164969,0.370499,53982.0,53977.0,0.185263]
[1725645165193,0.370484,53984.0,53976.0,0.568565]
[1725645165417,0.22464336,53983.0,53976.0,0.3833]
[1725645165676,0.01,54003.0,53976.0,0.753834]
[1725645165677,0.22464336,53992.0,53976.0,0.753834]
[1725645165912,0.22464336,53992.0,53982.0,0.185245]
[1725645165913,0.185234,53986.0,53982.0,0.185245]
[1725645166143,0.4,53996.0,53978.0,0.370518]
[1725645166144,0.22464336,53996.0,53985.0,0.370471]
[1725645166375,0.22464336,53996.0,53977.0,0.19475239]
[1725645166580,0.18522,53990.0,53986.0,0.185232]
[1725645167036,0.22464336,53992.0,53985.0,0.370467]
[1725645167238,0.185217,53991.0,53987.0,0.185229]
[1725645167461,0.185214,53992.0,53989.0,0.185222]
[1725645167691,0.185214,53992.0,53978.0,0.023]
[1725645167692,0.02900046,53991.0,53988.0,0.3941]
[1725645167900,0.185221,53990.0,53988.0,0.3941]
[1725645168109,0.02900046,53991.0,53988.0,0.3941]
[1725645168110,0.21421646,53991.0,53988.0,0.3941]
[1725645168360,0.02900046,53991.0,53988.0,0.579326]
[1725645168588,0.02900046,53991.0,53990.0,0.555657]
[1725645168813,0.02900046,53991.0,53990.0,0.926095]
[1725645169032,0.02900046,53991.0,53990.0,0.555657]
[1725645169907,0.02900046,53991.0,53990.0,0.926095]
[1725645170144,0.01081,54020.0,53990.0,0.926095]
[1725645170145,0.22464336,54014.0,53993.0,0.01]
[1725645170382,0.22464336,54010.0,53996.0,0.370393]
[1725645170591,0.185157,54009.0,54003.0,0.370344]
[1725645170877,0.185972,54008.0,54004.0,0.185169]
[1725645171088,0.185972,54008.0,53998.0,0.3885]
[1725645171089,0.185972,54008.0,54005.0,1.64563]
[1725645171090,0.000814,54008.0,54005.0,1.64563]
[1725645171304,0.000814,54008.0,54007.0,0.185161]
[1725645171528,0.000814,54008.0,54007.0,2.201105]
[1725645171762,0.000814,54008.0,54007.0,2.407783]
[1725645171968,0.000814,54008.0,54007.0,2.037461]
[1725645172201,0.000814,54008.0,54007.0,2.407783]
[1725645172875,0.000814,54008.0,54007.0,2.778105]
[1725645173091,0.000814,54008.0,54007.0,3.148427]
[1725645173777,0.000814,54008.0,54007.0,2.778105]
[1725645174454,0.000814,54008.0,54007.0,2.407783]
[1725645174732,0.000814,54008.0,54007.0,2.037461]
[1725645174964,0.000814,54008.0,54007.0,2.209283]
[1725645175201,0.000814,54008.0,54007.0,1.2753]
[1725645176106,0.185971,54008.0,54007.0,1.2753]
[1725645176314,0.556286,54008.0,54007.0,1.2753]
[1725645176966,0.555986,54008.0,54007.0,1.2753]
[1725645177623,0.185671,54008.0,54007.0,1.2753]
[1725645178094,0.185671,54008.0,54003.0,1.2753]
[1725645178095,0.555513,54004.0,54003.0,1.2753]
[1725645178318,0.925855,54004.0,54003.0,1.2753]
[1725645178583,0.555513,54004.0,54003.0,1.2753]
[1725645179009,0.925855,54004.0,54003.0,1.2753]
[1725645179658,0.555513,54004.0,54003.0,1.2753]
[1725645180078,0.185171,54004.0,54003.0,1.2753]
[1725645180318,0.555513,54004.0,54003.0,1.2753]
[1725645180529,0.925855,54004.0,54003.0,1.2753]
[1725645180977,0.555595,53996.0,53995.0,1.2753]
[1725645181386,0.1861,54001.0,53991.0,1.2753]
[1725645181387,0.185212,53992.0,53991.0,1.2753]
[1725645181391,0.185206,53994.0,53991.0,1.2753]
[1725645181600,0.1852,53996.0,53993.0,0.185208]
[1725645181802,0.185202,53995.0,53991.0,1.64573]
[1725645182007,0.3704,53996.0,53991.0,1.2753]
[1725645182419,0.185206,53994.0,53991.0,1.2753]
[1725645182631,0.185194,53998.0,53991.0,1.2753]
[1725645182835,0.185199,53996.0,53993.0,0.185206]
[1725645183039,0.370378,53999.0,53991.0,1.645729]
[1725645183242,0.185197,53997.0,53994.0,0.185202]
[1725645183447,0.370385,53998.0,53991.0,1.460515]
[1725645183655,0.22464336,53997.0,53991.0,1.2753]
[1725645183857,0.370408,53995.0,53991.0,1.2753]
[1725645184063,0.185207,53994.0,53991.0,1.460515]
[1725645184480,0.370408,53995.0,53991.0,1.2753]
[1725645184698,0.0156265,54004.0,53991.0,1.2753]
[1725645184699,0.59500436,54002.0,53994.0,0.370405]
[1725645184979,0.370337,54005.0,54001.0,0.185181]
[1725645185213,0.370337,54005.0,54000.0,0.185183]
[1725645185460,0.000514,54008.0,53997.0,0.37039]
[1725645185698,0.22464336,54007.0,53999.0,0.370373]
[1725645185932,0.185164,54006.0,53998.0,1.2753]
[1725645186170,0.59496836,54007.0,53998.0,1.2753]
[1725645186469,0.185171,54004.0,54000.0,0.185182]
[1725645186946,0.185171,54004.0,54001.0,0.185181]
[1725645187186,0.185165,54006.0,54001.0,0.370361]
[1725645187420,0.370335,54006.0,53999.0,0.370375]
[1725645187666,0.370335,54006.0,53998.0,1.645683]
[1725645187667,0.22464336,54007.0,54000.0,0.370367]
[1725645187905,0.22464336,54007.0,54002.0,0.185176]
[1725645187906,0.59496736,54007.0,54002.0,0.185176]
[1725645188150,0.000816,54016.0,54007.0,0.768322]
[1725645188390,0.000816,54016.0,54014.0,0.185137]
[1725645188630,0.39472579,54024.0,54014.0,0.185137]
[1725645188631,0.22464336,54021.0,54016.0,0.185128]
[1725645188884,0.22464336,54021.0,54008.0,0.20775239]
[1725645188885,0.40974436,54025.0,54017.0,0.37025]
[1725645189126,0.185108,54023.0,54018.0,0.4132]
[1725645189364,0.185103,54024.0,54018.0,0.4132]
[1725645189600,0.185106,54023.0,54019.0,0.185118]
[1725645189832,0.185106,54023.0,54018.0,0.4132]
[1725645189833,0.18511,54022.0,54018.0,0.598323]
[1725645190073,0.59484536,54025.0,54018.0,0.4132]
[1725645190319,0.22464336,54025.0,54020.0,0.370232]
[1725645190816,0.00082,54026.0,54021.0,0.370225]
[1725645191070,0.00082,54026.0,54024.0,0.1851]
[1725645191302,0.00082,54026.0,54021.0,0.370225]
[1725645191303,0.00082,54026.0,54025.0,0.555297]
[1725645191766,0.00082,54026.0,54025.0,0.925495]
[1725645192267,0.22546336,54026.0,54018.0,0.4132]
[1725645192500,0.22546336,54026.0,54017.0,0.568949]
[1725645192501,0.22464336,54022.0,54017.0,0.3833]
[1725645192751,0.00082,54026.0,54008.0,0.3833]
[1725645192752,0.22464336,54018.0,54008.0,0.3833]
[1725645192989,0.22464336,54022.0,54008.0,0.3833]
[1725645193245,0.59486636,54022.0,54017.0,0.185125]
[1725645193482,0.370228,54021.0,54016.0,0.185129]
[1725645193721,0.22464336,54022.0,54014.0,0.37027]
[1725645193966,0.22464336,54022.0,54016.0,0.370257]
[1725645194252,0.76683311,54026.0,54021.0,0.370222]
[1725645194253,0.00082,54026.0,54021.0,0.370222]
[1725645194499,0.185108,54023.0,54017.0,0.55537]
[1725645194758,0.185107,54023.0,54018.0,0.185121]
[1725645194997,0.185107,54023.0,54011.0,0.370289]
[1725645194998,0.185121,54019.0,54014.0,0.185135]
[1725645195472,0.22464336,54018.0,54013.0,0.3932]
[1725645195948,0.185127,54017.0,54013.0,0.57834]
[1725645196427,0.22464336,54018.0,54013.0,0.57834]
[1725645196428,0.22464336,54018.0,54013.0,0.3932]
[1725645196659,0.185131,54016.0,54013.0,0.3932]
[1725645196905,0.59491736,54014.0,54007.0,0.4023]
[1725645197136,0.22464336,54010.0,54004.0,0.1979]
[1725645197596,0.185144,54012.0,54009.0,0.185154]
[1725645197846,0.185147,54011.0,54008.0,0.185157]
[1725645198085,0.185151,54010.0,54007.0,0.18516]
[1725645198320,0.370296,54011.0,54003.0,0.772646]
[1725645198553,0.22464336,54014.0,54003.0,0.772646]
[1725645198554,0.22464336,54010.0,54003.0,0.4023]
[1725645198785,0.185161,54007.0,54004.0,0.18517]
[1725645199023,0.370315,54008.0,54003.0,0.4023]
[1725645199258,0.185167,54006.0,54003.0,0.4023]
[1725645199535,0.185161,54007.0,54004.0,0.185169]
[1725645199788,0.370313,54009.0,54003.0,0.587473]
[1725645199789,0.37032,54008.0,54003.0,0.587473]
[1725645200017,0.185159,54008.0,54005.0,0.185167]
[1725645200257,0.370313,54009.0,54004.0,1.2753]
[1725645200258,0.185165,54006.0,54004.0,1.2753]
[1725645200498,0.370313,54009.0,54004.0,1.2753]
[1725645200499,0.185158,54008.0,54004.0,1.2753]
[1725645200738,0.370313,54009.0,54004.0,1.2753]
[1725645200974,0.22464336,54015.0,54004.0,1.2753]
[1725645201237,0.22464336,54010.0,53999.0,0.1979]
[1725645201483,0.925907,54001.0,54000.0,1.2753]
[1725645201803,0.615,54009.0,53991.0,0.001628]
[1725645201804,0.555637,53992.0,53991.0,0.001628]
[1725645202728,0.926062,53992.0,53991.0,0.001628]
[1725645202962,1.52113036,53992.0,53991.0,0.001628]
[1725645203229,1.15070536,53992.0,53991.0,0.001628]
[1725645203440,0.78028036,53992.0,53991.0,0.001628]
[1725645204146,0.05494092,54006.0,53991.0,0.001628]
[1725645204147,0.22464336,54001.0,53992.0,0.401]
[1725645204378,0.40982536,54001.0,53997.0,0.185195]
[1725645204619,0.40982536,54001.0,53993.0,0.1988]
[1725645204620,0.59501236,54001.0,53993.0,0.1988]
[1725645204851,0.59501236,54001.0,53993.0,0.370417]
[1725645204852,0.185194,53998.0,53993.0,0.370417]
[1725645205071,0.185194,53998.0,53992.0,0.401]
[1725645205072,0.1852,53996.0,53992.0,0.586211]
[1725645205284,0.22464336,54001.0,53992.0,0.771424]
[1725645205545,0.22464336,54001.0,53998.0,0.18519]
[1725645205789,0.22464336,54001.0,53996.0,0.185196]
[1725645206016,0.22464336,54001.0,53994.0,0.370406]
[1725645206017,0.22464336,54001.0,53994.0,0.185204]
[1725645206271,0.185212,53992.0,53991.0,0.001628]
[1725645206518,0.185209,53993.0,53991.0,0.001628]
[1725645206762,0.185212,53992.0,53991.0,0.001628]
[1725645207242,0.555637,53992.0,53991.0,0.001628]
[1725645208175,0.185212,53992.0,53991.0,0.001628]
[1725645208393,0.555637,53992.0,53991.0,0.001628]
[1725645208824,0.926062,53992.0,53991.0,0.001628]
[1725645209047,1.296487,53992.0,53991.0,0.001628]
[1725645209543,1.92054269,53992.0,53991.0,0.001628]
[1725645210011,2.31164269,53992.0,53991.0,0.001628]
[1725645210259,2.68406769,53992.0,53991.0,0.001628]
[1725645210537,2.79982766,53992.0,53991.0,0.001628]
[1725645210785,3.06246858,53992.0,53991.0,0.001628]
[1725645210996,3.00752766,53992.0,53991.0,0.001628]
[1725645211212,3.09802872,53992.0,53991.0,0.001628]
[1725645211447,3.03345002,53992.0,53991.0,0.001628]
[1725645211949,3.40387502,53992.0,53991.0,0.001628]
[1725645212186,3.40387502,53992.0,53985.0,0.001628]
[1725645212187,2.84170636,53986.0,53985.0,0.001628]
[1725645212456,2.94170636,53986.0,53985.0,0.001628]
[1725645212693,2.57124036,53986.0,53985.0,0.001628]
[1725645213906,2.56924036,53986.0,53985.0,0.001628]
[1725645214870,2.57124036,53986.0,53985.0,0.001628]
[1725645215105,2.56924036,53986.0,53985.0,0.001628]
[1725645215566,2.58467148,53986.0,53985.0,0.001628]
[1725645217731,2.40143848,53986.0,53985.0,0.001628]
[1725645217984,0.185308,53964.0,53963.0,1.35110836]
[1725645218205,0.3973,53974.0,53964.0,0.370617]
[1725645218206,0.22464336,53974.0,53964.0,0.370617]
[1725645218423,0.22464336,53974.0,53957.0,0.1912]
[1725645218424,0.22464336,53974.0,53966.0,0.1912]
[1725645218645,0.185298,53967.0,53966.0,0.1912]
[1725645218855,0.555894,53967.0,53966.0,0.1912]
[1725645219296,0.185295,53968.0,53966.0,0.1912]
[1725645219542,0.185298,53967.0,53966.0,0.1912]
[1725645219758,0.555894,53967.0,53966.0,0.1912]
[1725645220488,0.555894,53967.0,53959.0,0.370647]
[1725645220489,0.370638,53961.0,53960.0,0.1847]
[1725645220705,0.370638,53961.0,53955.0,0.370674]
[1725645220706,0.185332,53957.0,53956.0,1.2753]
[1725645220957,0.02901243,53967.0,53956.0,1.2753]
[1725645220958,0.370631,53962.0,53956.0,1.2753]
[1725645221183,0.24044676,53974.0,53963.0,0.185311]
[1725645221402,0.24044676,53974.0,53961.0,0.370637]
[1725645221403,0.22464336,53970.0,53961.0,0.370637]
[1725645221639,0.22464336,53970.0,53962.0,0.3966]
[1725645221847,0.18531,53964.0,53962.0,0.3966]
[1725645222074,0.555913,53966.0,53962.0,0.581914]
[1725645222299,0.59522036,53970.0,53966.0,0.185301]
[1725645222300,0.18529,53970.0,53966.0,0.185301]
[1725645222526,0.18529,53970.0,53963.0,0.1942]
[1725645222527,0.370557,53973.0,53968.0,0.185293]
[1725645222738,0.370557,53973.0,53966.0,0.4114]
[1725645222739,0.18529,53970.0,53966.0,0.4114]
[1725645222960,0.370571,53971.0,53966.0,0.596698]
[1725645223177,0.370557,53973.0,53966.0,0.4114]
[1725645223409,0.185283,53972.0,53968.0,0.185294]
[1725645223683,0.185283,53972.0,53967.0,0.370596]
[1725645223684,0.22464336,53982.0,53969.0,1.27900541]
[1725645223927,0.22464336,53982.0,53964.0,0.01]
[1725645223928,0.185249,53982.0,53978.0,0.185259]
[1725645224144,0.384,53992.0,53974.0,0.370546]
[1725645224145,0.370454,53988.0,53977.0,0.5854]
[1725645224378,0.185238,53985.0,53981.0,0.185249]
[1725645224597,0.55573,53983.0,53982.0,1.2753]
[1725645224848,1.15086036,53983.0,53982.0,1.2753]
[1725645225104,1.15086036,53983.0,53969.0,0.3955]
[1725645225105,0.22464336,53983.0,53969.0,0.3955]
[1725645225338,0.1978,53984.0,53967.0,0.1922]
[1725645225339,0.185294,53968.0,53967.0,0.1922]
[1725645225567,0.22464336,53970.0,53967.0,0.1922]
[1725645225568,0.185291,53969.0,53967.0,0.1922]
[1725645225789,0.185294,53968.0,53967.0,0.1922]
[1725645226048,0.555883,53968.0,53967.0,0.1922]
[1725645227123,0.59522536,53970.0,53965.0,0.3955]
[1725645227360,0.59522536,53970.0,53955.0,0.370676]
[1725645227361,0.185308,53964.0,53963.0,0.1912]
[1725645227809,0.22464336,53966.0,53963.0,0.1912]
[1725645228049,0.185306,53965.0,53963.0,0.1912]
[1725645228272,0.22464336,53966.0,53963.0,0.1912]
[1725645228748,0.40994736,53966.0,53963.0,0.1912]
[1725645228977,0.185308,53964.0,53963.0,0.1912]
[1725645231016,0.370588,53969.0,53963.0,0.1912]
[1725645231250,0.22464336,53974.0,53965.0,0.37061]
[1725645231504,0.185291,53969.0,53966.0,0.185301]
[1725645232188,0.370562,53972.0,53966.0,0.1853]
[1725645232663,0.370542,53975.0,53968.0,0.3914]
[1725645232667,0.185285,53971.0,53968.0,0.3914]
[1725645233119,0.185285,53971.0,53968.0,0.576693]
[1725645233603,0.59519436,53974.0,53968.0,0.576693]
[1725645233604,0.370557,53973.0,53968.0,0.3914]
[1725645233842,0.370557,53973.0,53968.0,0.576691]
[1725645234069,0.185283,53972.0,53968.0,0.576691]
[1725645234293,0.185281,53972.0,53968.0,0.576691]
[1725645234759,0.185289,53970.0,53968.0,0.3914]
[1725645235240,0.370557,53973.0,53968.0,0.3914]
[1725645235241,0.370563,53972.0,53968.0,0.3914]
[1725645235492,0.185291,53969.0,53968.0,0.3914]
[1725645235961,0.01581889,53979.0,53963.0,0.1912]
[1725645235962,0.185308,53964.0,53963.0,0.1912]
[1725645236444,0.555925,53964.0,53963.0,0.1912]
[1725645236669,0.185308,53964.0,53963.0,0.1912]
[1725645237885,0.185282,53972.0,53968.0,0.185293]
[1725645238129,0.185283,53972.0,53969.0,0.185289]
[1725645238386,0.370551,53974.0,53970.0,0.39]
[1725645238387,0.185278,53973.0,53970.0,0.39]
[1725645238614,0.185284,53971.0,53970.0,0.39]
[1725645238846,0.370535,53976.0,53972.0,0.18528]
[1725645239086,0.17346089,53977.0,53970.0,0.39]
[1725645239325,0.22464336,53973.0,53970.0,0.39]
[1725645239544,0.185283,53972.0,53970.0,0.39]
[1725645240766,0.22464336,53973.0,53966.0,0.185299]
[1725645240986,0.185275,53974.0,53971.0,0.185283]
[1725645241217,0.185248,53982.0,53979.0,0.185256]
[1725645241445,0.000815,53992.0,53972.0,0.00370538]
[1725645241446,0.185224,53989.0,53985.0,0.185235]
[1725645241692,0.000815,53992.0,53984.0,0.185238]
[1725645241693,0.185227,53988.0,53984.0,0.185238]
[1725645241912,0.000815,53992.0,53981.0,0.4023]
[1725645241913,0.185246,53982.0,53981.0,0.4023]
[1725645242128,0.22464336,53985.0,53981.0,0.4023]
[1725645242129,0.370486,53984.0,53981.0,0.4023]
[1725645242340,0.185245,53983.0,53981.0,0.4023]
[1725645242578,0.37045,53989.0,53984.0,0.185238]
[1725645242863,0.185234,53986.0,53981.0,0.4023]
[1725645243072,0.185234,53986.0,53982.0,0.185245]
[1725645243976,0.185237,53985.0,53982.0,0.185245]
[1725645244233,0.185237,53985.0,53981.0,0.4023]
[1725645244234,0.185243,53984.0,53981.0,0.4023]
[1725645244448,0.37047,53986.0,53981.0,0.4023]
[1725645244673,0.185243,53984.0,53981.0,0.4023]
[1725645244906,0.370434,53991.0,53981.0,0.4023]
[1725645244907,0.370394,53997.0,53985.0,0.1934]
[1725645245123,0.186029,53992.0,53989.0,0.18522]
[1725645245372,0.186029,53992.0,53987.0,0.771454]
[1725645245373,0.000815,53992.0,53990.0,0.185216]
[1725645245645,0.22464336,53998.0,53984.0,0.370478]
[1725645245646,0.185182,54001.0,53997.0,0.185194]
[1725645245874,0.370349,54003.0,53997.0,0.185194]
[1725645246118,0.185166,54006.0,54002.0,0.185176]
[1725645246400,0.185166,54006.0,53998.0,0.00370348]
[1725645246401,0.185155,54009.0,54004.0,0.1934]
[1725645246876,0.185155,54009.0,54005.0,0.596865]
[1725645246881,0.22464336,54014.0,54007.0,0.370321]
[1725645247075,0.22464336,54014.0,54005.0,0.4117]
[1725645247076,0.185958,54012.0,54008.0,0.00370271]
[1725645247320,0.000814,54012.0,54006.0,0.185161]
[1725645247556,0.185154,54009.0,54005.0,0.596866]
[1725645248551,0.000814,54012.0,54011.0,0.185147]
[1725645248784,0.000814,54012.0,54007.0,0.370318]
[1725645249008,0.000814,54012.0,54010.0,0.185148]
[1725645249254,0.000814,54012.0,54005.0,0.4117]
[1725645249255,0.000814,54012.0,54011.0,0.555441]
[1725645249480,0.000814,54012.0,54011.0,0.96954351]
[1725645249704,0.370193,54026.0,54017.0,0.185124]
[1725645249946,0.185115,54021.0,54017.0,0.185126]
[1725645250189,0.185107,54023.0,54019.0,0.185119]
[1725645250422,0.0289873,54029.0,54019.0,0.4104]
[1725645250684,0.185083,54030.0,54025.0,0.185097]
[1725645250917,0.22464336,54031.0,54025.0,0.185097]
[1725645251143,0.38610161,54034.0,54021.0,0.370225]
[1725645251144,0.20102761,54034.0,54029.0,0.185084]
[1725645251368,0.370126,54036.0,54021.0,0.370224]
[1725645251369,0.185098,54026.0,54021.0,0.185112]
[1725645251621,0.22464336,54030.0,54021.0,0.18511]
[1725645251863,0.22464336,54030.0,54020.0,0.560927]
[1725645251864,0.22464336,54030.0,54020.0,0.1907]
[1725645252096,0.185103,54024.0,54020.0,0.1907]
[1725645252331,0.22464336,54030.0,54020.0,0.1907]
[1725645252547,0.185098,54026.0,54020.0,0.746043]
[1725645252770,0.59481436,54030.0,54020.0,0.746043]
[1725645252771,0.185094,54027.0,54023.0,0.185104]
[1725645253003,0.185093,54027.0,54023.0,0.185106]
[1725645253245,0.22464336,54030.0,54024.0,0.185101]
[1725645253246,0.18509,54028.0,54024.0,0.185101]
[1725645253483,0.185094,54027.0,54021.0,0.370226]
[1725645253702,0.22545336,54039.0,54020.0,0.1907]
[1725645253918,0.370123,54036.0,54026.0,0.3798]
[1725645254222,0.22545336,54039.0,54032.0,0.1972]
[1725645254223,0.00081,54039.0,54032.0,0.1972]
[1725645254606,0.00081,54039.0,54033.0,0.00370078]
[1725645254621,0.00081,54039.0,54036.0,0.185061]
[1725645255261,0.00081,54039.0,54032.0,0.567347]
[1725645255700,0.00081,54039.0,54033.0,0.370144]
[1725645255924,0.185861,54039.0,54035.0,0.185063]
[1725645256684,0.185064,54036.0,54032.0,0.382274]
[1725645256894,0.185064,54036.0,54032.0,0.1972]
[1725645257099,0.370125,54036.0,54032.0,0.1972]
[1725645257298,0.370125,54036.0,54024.0,0.3902]
[1725645257299,0.62544336,54036.0,54024.0,0.3902]
[1725645257501,0.22464336,54030.0,54025.0,0.185098]
[1725645257739,0.59481136,54030.0,54024.0,0.3902]
[1725645258438,0.185086,54029.0,54024.0,0.3902]
[1725645258640,0.185087,54029.0,54024.0,0.3902]
[1725645258863,0.557243,54034.0,54024.0,0.3902]
[1725645258864,0.370148,54033.0,54024.0,0.3902]